Cogmind - Beta 14 @@@ ROGUE MODE // 2024.10.11 @ 15:25:16 Player: Gabe+Kate4EVR Result: Destroyed by G-34 Mercenary with Small Laser Performance ------------- Evolutions (1) 500 Regions Visited (2) 400 Robots Destroyed (47) 235 Value Destroyed (922) 922 Prototype IDs (4) 80 Alien Tech Used (0) 0 Bonus (51) 51 TOTAL SCORE: 2188 Bonus ------- High Alert Combat Kills 51 Cogmind --------- Core Integrity 0/400 Matter 295/300 Energy 100/100 System Corruption 4% Temperature Cool (6) Movement Core (150) Ox2 Location -9/Materials Parts ------- > --- POWER (1) -------- (None) > --- PROPULSION (2) --- (None) > --- UTILITY (4) ------ Small Storage Unit Weight Redist. System Signal Interpreter Hacking Suite > --- WEAPON (2) ------- Improved Medium Laser > --- INVENTORY (8) ---- Ion Engine Flight Unit Flight Unit Large Storage Unit Machine Analyzer Hacking Suite Grenade Launcher Katana Peak State ------------ > --- POWER ------------ Improved Ion Engine > --- PROPULSION ------- Flight Unit Flight Unit > --- UTILITY ---------- Small Storage Unit Weight Redist. System Signal Interpreter Hacking Suite > --- WEAPON ----------- Improved Medium Laser Katana > --- INVENTORY -------- Large Storage Unit Weight Redist. System Visual Processing Unit Sensor Array Core Shielding Hardened Light Armor Plating Small Laser Grenade Launcher [Rating: 18] Favorites ----------- Power Light Ion Engine Engine Light Ion Engine Propulsion Aluminum Leg Leg Aluminum Leg Flight Unit Flight Unit Utility Small Storage Unit Device Weight Redist. System Storage Small Storage Unit Processor Signal Interpreter Hackware Hacking Suite Weapon Assault Rifle Energy Gun Improved Medium Laser Energy Cannon Beam Cannon Ballistic Gun Assault Rifle Launcher Grenade Launcher Special Weapon Plasma Cutter Impact Weapon Mace Slashing Weapon Katana Build | -11 -10 -9 ------- Run | Yrd Mat Mat Slots Evolved 2 | . . 2 Power . | . . . Propulsion . | . . . Utility 2 | . . 2 Weapon . | . . . Parts Attached 52 | 6 11 35 Power 14 | 1 3 10 Engine 14 | 1 3 10 Core . | . . . Reactor . | . . . Propulsion 10 | 2 5 3 Treads . | . . . Leg 7 | 2 5 . Wheel . | . . . Hover . | . . . Flight 3 | . . 3 Utility 11 | 1 2 8 Device 3 | . . 3 Storage 3 | 1 . 2 Processor 3 | . 1 2 Hackware 2 | . 1 1 Protection . | . . . Artifact . | . . . Weapon 17 | 2 1 14 Energy Gun 7 | . . 7 Energy Cannon 1 | . 1 . Ballistic Gun 3 | 2 . 1 Ballistic Cannon . | . . . Launcher 3 | . . 3 Special Weapon 1 | . . 1 Impact Weapon 1 | . . 1 Slashing Weapon 1 | . . 1 Piercing Weapon . | . . . Special Melee Weapon . | . . . Unidentified Prototypes 4 | . . 4 Corrupted Parts 1 | . . 1 System Corruption 4 | . . 4 Parts Lost 13 | . 2 11 Power 2 | . . 2 Propulsion 6 | . 2 4 Utility . | . . . Weapon 5 | . . 5 Highest Loss Streak 7 | . 1 7 To Critical Strikes . | . . . Average Slot Usage (%) 93 | . 99 84 Engine 11 | . 14 9 Leg 19 | . 27 7 Flight 4 | . . 9 Device 2 | . . 6 Storage 12 | . 14 10 Processor 9 | . 8 10 Hackware 9 | . 5 14 Energy Gun 2 | . . 6 Energy Cannon 7 | . 9 3 Ballistic Gun 11 | . 18 2 Peak Build Rating 18 | 6 9 18 Average Rating 9 | 5 7 12 On Entrance 5 | . 6 9 Naked Turns . | . . . Heaviest Build 15 | 13 13 15 Greatest Support 20 | 20 20 20 Greatest Overweight (x) 4 | . 1 4 Average Overweight (x) . | . . . Largest Inventory Capacity 8 | 8 8 8 Average Capacity 7 | 7 8 7 Most Carried 8 | . 8 8 Average Carried 6 | . 5 6 Final Capacity 8 | 8 8 8 Final Carried 8 | . 8 8 Class Distribution -------------------- 67% | Mutant 31% | Scavenger-Mutant Dominant Class ---------------- Mutant | -10/Materials Scavenger-Mutant | -9/Materials Resources | -11 -10 -9 ----------- Run | Yrd Mat Mat Matter Collected 971 | 187 384 400 Remotely . | . . . Salvage Created 1524 | . 436 1088 Parts 109 | . 30 79 Haulers Intercepted 4 | . 1 3 Recyclers Shooed 1 | . . 1 Parts Field Recycled . | . . . Retrieved Matter . | . . . Parts Self-Destructed . | . . . Prevented . | . . . Kills | -11 -10 -9 ------- Run | Yrd Mat Mat Combat Hostiles Destroyed 29 | . 6 23 Melee 1 | . . 1 Guns 17 | . 5 12 Cannons 5 | . 1 4 AOE 6 | . . 6 Classes Destroyed 12 | . 7 5 Worker 3 | . . 3 Builder 1 | . . 1 Tunneler 1 | . 1 . Hauler 4 | . 1 3 Recycler 4 | . 2 2 Mechanic 1 | . . 1 Operator 3 | . 1 2 Watcher 1 | . 1 . Swarmer 13 | . 3 10 Grunt 10 | . 3 7 Duelist 1 | . . 1 Sentry 5 | . . 5 Best Kill Streak 8 | . 5 8 Combat Bots Only 4 | . 2 4 Max Kills in Single Turn 5 | . 1 5 Gunslinging . | . . . Exploded 4 | . . 4 Melee 1 | . . 1 Uniques/NPCs Destroyed . | . . . Combat | -11 -10 -9 -------- Run | Yrd Mat Mat Hostile Shots Fired 209 | . 82 127 Missed 68 | . 23 45 Damage Taken 1854 | . 626 1228 Core 563 | . 161 402 Absorbed by Shields . | . . . Core Remaining (%) 67 | 100 35 . Volleys Fired 123 | . 52 71 Largest 2 | . 2 2 Hottest 100 | . 80 100 Shots Fired 211 | . 103 108 Gun 159 | . 88 71 Cannon 47 | . 15 32 Launcher 4 | . . 4 Special 1 | . . 1 Kinetic 108 | . 88 20 Thermal 99 | . 15 84 Explosive 4 | . . 4 Electromagnetic . | . . . Robot Hit Streak 10 | . 10 8 Robot Miss Streak 5 | . 5 3 Penetration Max . | . . . Secondary Targets . | . . . Shots Hit Robots 133 | . 58 75 Core Hits 71 | . 20 51 Critical Kills . | . . . Critical Parts Destroyed . | . . . Critical Strikes 1 | . . 1 Burn 1 | . . 1 Melee Attacks 5 | . . 5 Impact . | . . . Slashing 5 | . . 5 Piercing . | . . . Sneak Attacks 1 | . . 1 Combat Hostiles . | . . . Follow-up Attacks . | . . . Damage Inflicted 2557 | . 722 1835 Guns 1263 | . 528 735 Cannons 599 | . 194 405 Explosions 567 | . . 567 Melee 128 | . . 128 Ramming . | . . . Kinetic 673 | . 528 145 Thermal 1189 | . 194 995 Explosive 431 | . . 431 Electromagnetic 136 | . . 136 Impact . | . . . Slashing 128 | . . 128 Piercing . | . . . Highest Corruption 4 | . 4 4 Average Corruption 3 | . 3 4 Corruption Purged . | . . . Corruption Blocked . | . . . Effects 20 | . 14 6 Message Errors 2 | . . 2 Matter Fused 4 | . 2 2 Heat Flow Errors 3 | . 3 . Energy Discharges 6 | . 5 1 Data Loss (minor) 2 | . 1 1 Data Loss (major) 2 | . 2 . Weapon Failures 1 | . 1 . Overload Shots . | . . . Overflow Damage 25 | . . 25 Projectiles 22 | . . 22 Explosions 3 | . . 3 Melee . | . . . Knockbacks . | . . . Impact . | . . . Kinetic . | . . . Secondary . | . . . Self-Inflicted Damage 73 | . . 73 Shots 3 | . . 3 Rammed . | . . . Targets Rammed . | . . . Kicked . | . . . Crushed . | . . . Highest Temperature 438 | . 314 438 Average Temperature 80 | . 63 89 Received Heat Transfer 531 | . 138 393 Effects 7 | . . 7 Energy Bleed 1 | . . 1 Interference 3 | . . 3 Damage (minor) 1 | . . 1 Damage (major) 2 | . . 2 Siege Activations . | . . . Robots Corrupted . | . . . Combat Hostiles . | . . . Parts Fried . | . . . Impact Corruptions . | . . . Robots Melted . | . . . Combat Hostiles . | . . . Parts Melted 3 | . . 3 Heat Transferred 2657 | . 407 2250 Parts Sabotaged . | . . . Parts Stolen . | . . . Parts Stripped . | . . . Power Chain Reactions . | . . . Alert | -11 -10 -9 ------- Run | Yrd Mat Mat Peak Influence 631 | . 169 631 Initial 2 | . . 2 Average 151 | . 48 307 Maximum Alert Level 2 | . . 2 Low Security (%) 68 | 100 100 22 Level 1 20 | . . 50 Level 2 11 | . . 27 Level 3 . | . . . Level 4 . | . . . Level 5 . | . . . High Security . | . . . Max Security . | . . . Squads Dispatched 3 | . 1 2 Investigation . | . . . Extermination . | . . . Reinforcement 3 | . 1 2 Assault . | . . . Garrison . | . . . Intercept . | . . . Searches Triggered . | . . . Construction Impeded . | . . . Haulers Reinforced . | . . . Active Scanning Responses . | . . . Cargo Convoy Interrupts . | . . . Stealth | -11 -10 -9 --------- Run | Yrd Mat Mat Distress Signals 2 | . . 2 Communications Jammed . | . . . Distress Signals . | . . . Times Spotted 53 | . 11 42 Peak Tracking Total 9 | . 4 9 Tactical Retreats 3 | . . 3 Traps | -11 -10 -9 ------- Run | Yrd Mat Mat Traps Triggered 2 | . 2 . Indirectly . | . . . Trap Hack Attempts . | . . . Triggered . | . . . Disarmed . | . . . Reprogrammed . | . . . Reused . | . . . Traps Extracted . | . . . Installed . | . . . Triggered . | . . . Machines | -11 -10 -9 ---------- Run | Yrd Mat Mat Machines Disabled 3 | . 1 2 Max in Single Turn 1 | . 1 1 Machines Repaired . | . . . Machines Dismantled . | . . . Machines Sabotaged . | . . . Overloaded Fab Kills . | . . . Hacking | -11 -10 -9 --------- Run | Yrd Mat Mat Machines Accessed 9 | . 3 6 Terminals 8 | . 2 6 Fabricators . | . . . Repair Stations . | . . . Recycling Units 1 | . 1 . Scanalyzers . | . . . Garrison Access . | . . . Total Hacks 18 | . 5 13 Successful 11 | . 3 8 Failed 7 | . 2 5 Catastrophic . | . . . Database Lockouts . | . . . Manual 16 | . 3 13 Terminals 16 | . 3 13 Fabricators . | . . . Repair Stations . | . . . Recycling Units 2 | . 2 . Scanalyzers . | . . . Garrison Access . | . . . Terminal Hacks 2 | . 1 1 Terminal Index 2 | . 1 1 Fabricator Hacks . | . . . Repair Station Hacks . | . . . Recycling Unit Hacks . | . . . Scanalyzer . | . . . Garrison Access Hacks . | . . . Unauthorized Hacks 9 | . 2 7 Terminals 8 | . 1 7 Assimilate 1 | . . 1 Botnet 7 | . 1 6 Fabricators . | . . . Repair Stations . | . . . Recycling Units 1 | . 1 . Monitor 1 | . 1 . Scanalyzers . | . . . Garrison Access . | . . . Data Cores Recovered . | . . . Used . | . . . Hacking Detections 4 | . 1 3 Full Trace Events 1 | . . 1 Feedback Events . | . . . Feedback Blocked . | . . . Robot Schematics Acquired . | . . . Robots Built . | . . . Authchips . | . . . Time . | . . . Total Robot Build Rating . | . . . Part Schematics Acquired . | . . . Parts Built . | . . . Authchips . | . . . Time . | . . . Total Part Build Rating . | . . . Parts Repaired . | . . . Time . | . . . Parts Recycled . | . . . Recycled Matter . | . . . Retrieved Matter . | . . . Retrieved Components . | . . . Parts Scanalyzed . | . . . Part Schematics Acquired . | . . . Parts Damaged . | . . . Bothacking | -11 -10 -9 ------------ Run | Yrd Mat Mat Used RIF Installer . | . . . Robots Hacked . | . . . Non-combat . | . . . Combat . | . . . Robot Hacks Applied . | . . . Relay Couplers Released . | . . . Fabnet Peak Effective % . | . . . Robots Rewired . | . . . Allies Hacked . | . . . Hacks Repelled . | . . . Allies | -11 -10 -9 -------- Run | Yrd Mat Mat Total Allies 1 | . . 1 Largest Group 1 | . . 1 Highest-Rated Group 10 | . . 10 Highest-Rated Ally 10 | . . 10 Total Orders . | . . . Ally Attacks . | . . . Total Damage . | . . . Kills . | . . . Allies Corrupted . | . . . Allies Melted . | . . . Intel | -11 -10 -9 ------- Run | Yrd Mat Mat Robot Analysis Total . | . . . Derelict Logs Recovered . | . . . Drone Launches . | . . . Drone Recoveries . | . . . Exploration | -11 -10 -9 ------------- Run | Yrd Mat Mat Turns Passed 1618 | 71 889 658 Spaces Moved 1135 | 56 576 503 Core 69 | 7 . 62 Treads . | . . . Legs 725 | 49 576 100 Wheels . | . . . Hover . | . . . Flight 341 | . . 341 Fastest Speed 37 | 50 120 37 Average Speed 97 | 111 120 69 Slowest Speed 250 | 120 190 250 Overloaded Moves . | . . . Propulsion Burnouts . | . . . Robots Hopped 5 | . . 5 Cave-ins Triggered . | . . . Exploration Rate (%) 39 | 5 46 67 Regions Visited 2 Branch Regions . Pre-discovered Areas . | . . . Known Exits Taken . | . . . Unknown Exits Taken 2 | 1 1 . Scrap Searched . | . . . Spaces Dug . | . . . Terrain Destroyed 22 | . . 22 Melee . | . . . Projectile . | . . . AOE 22 | . . 22 Terrain Rammed . | . . . Walls Destroyed . | . . . Machines Disabled . | . . . Actions | -11 -10 -9 --------- Run | Yrd Mat Mat Total 1435 | 61 681 693 Wait 58 | . 13 45 Move 1123 | 55 575 493 Hop 5 | . . 5 Pick Up 23 | . 15 8 Fast Attach 34 | 6 4 24 Attach 6 | . 1 5 Detach 9 | . 2 7 Swap 12 | . 6 6 Drop 37 | . 13 24 Fire 123 | . 52 71 Melee 5 | . . 5 Ram . | . . . Kick . | . . . Crush . | . . . Escape Stasis . | . . . Rewire . | . . . Trap . | . . . Miscellaneous . | . . . Route ------- -11/Scrapyard -10/Materials -9/Materials (discovered 2 exits: [*Min] / *Sto) History --------- Turn | Location | Event 5 | -11/Scrapyard | Discovered new exit (range 16) 72 | -11/Scrapyard | Entered Materials 256 | -10/Materials | Core integrity fell below 50% 352 | -10/Materials | Build established: Mutant 398 | -10/Materials | Discovered new exit (range 12) 961 | -10/Materials | Entered another Materials area 961 | -9/Materials | Evolved 2 slots: Utility x2 1045 | -9/Materials | Discovered new exit (range 11) 1221 | -9/Materials | Core integrity fell below 50% 1256 | -9/Materials | Lost 7 parts (1p2n4w) 1372 | -9/Materials | Identified exit to Storage 1388 | -9/Materials | Discovered new exit (range 16) 1490 | -9/Materials | Build established: Scavenger-Mutant 1586 | -9/Materials | Core integrity fell below 20% 1619 | -9/Materials | Destroyed by G-34 Mercenary with Small Laser Last Messages --------------- 01587_ Imp. Medium Laser temporarily disabled. 01587_ Weight Redist. System temporarily disabled. 01587_ Signal Interpreter temporarily disabled. 01587_ U-05 Engineer lays Concrete. 01587_ K-01 Serf cleans the Pressure Siphon. 01588_ U-05 Engineer lays Concrete. 01590_ K-01 Serf cleans the Pressure Siphon. 01590_ U-05 Engineer lays Concrete. 01592_ Critical hit (Burn: +37). 01592_ U-05 Engineer lays Concrete. 01593_ K-01 Serf cleans the Pressure Siphon. 01593_ Ion Engine destroyed. 01594_ U-05 Engineer lays Concrete. 01595_ System corrupted: Energy discharge (-37). 01595_ U-05 Engineer lays Concrete. 01597_ K-01 Serf destroyed. 01598_ U-05 Engineer lays Concrete. 01599_ K-01 Serf collects debris. 01601_ U-05 Engineer lays Concrete. 01604_ K-01 Serf collects debris. Map ----- +----------------------------------------------------+ | ##????# ]## # [####[ | | ##????# ## # =+% T | | # #???# """" ## # =** *#### | | # #???# """" ## # *%* #??# / ####### | | [%###???# """" ## # **= #??#######?????? | | # #??# ## + #??????????????? | | # #??############ # #??????????????? | | # ###????????????## !!#############??????????????? | | ###??????????????# *%= "#???????????????????????? | | ?????????????????# = ""#???????????????????????? | | ?????????????????# !!#???????????????????????? | | ?????????????????# < ""#???????????????????????? | | ?????????????????# !!#???????????????????????? | | ?????????????????# ""#???????????????????????? | | ?????????????????# k "#???????????????????????? | | ?????????????????## ####????????????????######## | | ??????????????????# #?????????????????? | | ??????????????????# #??????????????????????##### | | ??????????????????# #??????????????????????????? | | ?????????????????## #???????????????????##?????? | | ?????????????????# ##+###??????????### #?????? | | ?????????????????# #?????????? #?????? | | ?????????????????+ #?????#??""" #?????? | | ?????????????????# """ #?????# """"" #?????? | | ?????????????????# """ #?????# """"" #?????? | | ?????????????????# """ @ #?????# """"" #?????? | | ?????????????????# g +?????# """ "#?????? | | ?????????????????# #?????# T#?????? | | ?????????????????# #?????# ] "#?????? | | ??????????????#### #?????# #?????? | | ??????????????# ###########+########## | | ??????????????# [=%%! | | ??????????????# [*%! | | ??????????????# *!= | | ??????????????# == | | ??????????????### """"" """" """ % "" | | ????????????????# """"" """"*%!"" [% """ | | ????????????????# """"" """" " " """ | | ????????????????# ? | | ???????????????? ??? = | | ??????????????????? | | ??????????????????? | | ???????????????????##############"### | | ????????????????????????????????? ?############## | | ????????????????????????????????? ??????????????? | | ????????????????????????????????? ?????????????? | | ????????????????????????????????? ??????????????? | | ?????????????????????????????????????????????????? | | ?????????????????????????????????????????????????? | | ?????????????????????????????????????????????????? | +----------------------------------------------------+ Best States ------------- Heat Dissipation 38 Energy Generation 14 Energy Capacity 280 Matter Stores 300 Matter Capacity 300 Sight Range 16 Terrain Scan Density 10 Additional Mass Support 6 Evasion (%) 62 Targeting Accuracy 5 Offensive Hacking 20 Item Schematics ----------------- None Robot Schematics ------------------ None Fabricated ------------ Nothing Alien Tech Used ----------------- None Achievements -------------- None Challenges ------------ None Game ------ Seed TeslaGuidedSpiker Manual? 0 Play Time 00:18:29 Cumulative 192.6 hours Start 2024.10.11 @ 15:11:03 End 2024.10.11 @ 15:25:16 Sessions 1 Manual Loads 0 Difficulty Rogue Special Mode None Game No. 378 Rogue 378 Adventurer 0 Explorer 0 Win Type - Total 0 Types 0/0/0/0/0/0/0/0/0 Lore% 36 Gallery% 63 Achievement% 48 Wizard Run 0 Options --------- Layout 0 ASCII 0 Keyboard 1 Movement Numpad Keybinds 0 Fullscreen 2 Font 18/X11 Map View 76x50 Zoom Use 0% Tactical HUD 1 Map Filters NONE Filters NONE Steam 1 RUN: e2f48e00-0ab6-4508-95bd-8996a1e38c91